fUSD/lending_fUSD_20260131
["ID","MTS","AMOUNT","RATE_DAILY","PERIOD"]
[404110355,1769868641036,-567.0,0.00015695,2]
[404110356,1769868641046,-1121.23,0.00015784,2]
[404110357,1769868641055,-3068.7,0.0001589,2]
[404110358,1769868641065,-244.392,0.0001589,2]
[404110359,1769868641075,-167.23,0.00016209,2]
[404110360,1769868641084,-353.22711189,0.00016233,2]
[404110361,1769868641094,-1481.23780761,0.00016233,2]
[404110362,1769868641103,-334.5472959,0.00016318,2]
[404110363,1769868641113,-3240.0,0.00016329,2]
[404110364,1769868641123,-500.0,0.00016373,2]
[404110365,1769868641132,-173.76893273,0.00016373,2]
[404110366,1769868641142,-500.0,0.00016373,2]
[404110367,1769868641151,-500.0,0.00016373,2]
[404110368,1769868641160,-513.5746578,0.00016373,2]
[404110369,1769868641170,-500.0,0.00016373,2]
[404110370,1769868641179,-500.0,0.00016373,2]
[404110371,1769868641188,-163.86018758,0.00016373,2]
[404110372,1769868641198,-500.0,0.00016373,2]
[404110373,1769868641208,-500.0,0.00016373,2]
[404110374,1769868641218,-2877.0,0.000164,2]
[404110375,1769868641227,-200.0,0.00016405,2]
[404110376,1769868641237,-2351.0,0.00016573,2]
[404110377,1769868641248,-545.0,0.00016685,2]
[404110378,1769868641258,-2500.0,0.00016721,2]
[404110379,1769868641267,-170.40794854,0.00016721,2]
[404110380,1769868641276,-1536.04360649,0.00016781,2]
[404110381,1769868641286,-613.8,0.00016797,2]
[404110382,1769868641295,-613.8,0.00016797,2]
[404110383,1769868641305,-500.0,0.00016818,2]
[404110384,1769868641315,-500.0,0.00016818,2]
[404110385,1769868641325,-254.13857235,0.00016818,2]
[404110386,1769868641335,-500.0,0.00016818,2]
[404110387,1769868641347,-266.325182,0.00016818,2]
[404110388,1769868641356,-500.0,0.00016818,2]
[404110389,1769868641366,-500.0,0.00016818,2]
[404110390,1769868641376,-500.0,0.00016818,2]
[404110391,1769868641385,-500.0,0.00016818,2]
[404110392,1769868641394,-500.0,0.00016818,2]
[404110393,1769868641403,-552.15863912,0.00016818,2]
[404110394,1769868641412,-500.0,0.00016818,2]
[404110395,1769868641422,-500.0,0.00016818,2]
[404110396,1769868641431,-500.0,0.00016818,2]
[404110397,1769868641441,-500.0,0.00016818,2]
[404110398,1769868641450,-500.0,0.00016818,2]
[404110399,1769868641460,-500.0,0.00016818,2]
[404110400,1769868641469,-500.0,0.00016818,2]
[404110401,1769868641479,-500.0,0.00016818,2]
[404110402,1769868641488,-500.0,0.00016818,2]
[404110403,1769868641499,-500.0,0.00016818,2]
[404110404,1769868641509,-500.0,0.00016818,2]
[404110405,1769868641519,-500.0,0.00016818,2]
[404110406,1769868641528,-500.0,0.00016818,2]
[404110407,1769868641538,-500.0,0.00016818,2]
[404110408,1769868641548,-500.0,0.00016818,2]
[404110409,1769868641557,-500.0,0.00016818,2]
[404110410,1769868641567,-155.61474751,0.0001682,2]
[404110411,1769868641577,-590.23127989,0.0001682,2]
[404110412,1769868641587,-500.0,0.0001682,2]
[404110413,1769868641596,-314.96271969,0.0001682,2]
[404110414,1769868641606,-300.0,0.0001682,2]
[404110415,1769868641618,-502.28343568,0.0001682,2]
[404110416,1769868641628,-500.0,0.0001682,2]
[404110417,1769868641638,-500.0,0.0001682,2]
[404110418,1769868641651,-2000.0,0.0001682,2]
[404110419,1769868641660,-1000.0,0.00016921,2]
[404110420,1769868641669,-1000.0,0.00016921,2]
[404110421,1769868641679,-500.0,0.00016921,2]
[404110422,1769868641691,-508.73137524,0.00016921,2]
[404110423,1769868641701,-545.0,0.00016927,2]
[404110424,1769868641710,-545.0,0.00016967,2]
[404110425,1769868641720,-545.0,0.00016982,2]
[404110426,1769868641729,-545.0,0.00016994,2]
[404110427,1769868641739,-500.0,0.00016999,2]
[404110428,1769868641749,-500.0,0.00016999,2]
[404110429,1769868641759,-192.0,0.00017,2]
[404110430,1769868641768,-545.0,0.00017111,2]
[404110431,1769868641777,-389.77554222,0.00017122,2]
[404110432,1769868641787,-1028.62382277,0.00017122,2]
[404110433,1769868641796,-158.98894011,0.00017145,2]
[404110434,1769868641808,-545.0,0.00017156,2]
[404110435,1769868641817,-400.0,0.000172,6]
[404110436,1769868641827,-376.0,0.00017226,2]
[404110437,1769868641836,-800.0,0.000173,6]
[404110438,1769868641845,-170.40794853,0.00017311,2]
[404110439,1769868641855,-376.0,0.00017314,2]
[404110440,1769868641865,-376.0,0.0001732,2]
[404110441,1769868641876,-545.0,0.00017326,2]
[404110442,1769868641886,-1592.87721993,0.00017329,2]
[404110443,1769868641895,-376.0,0.00017343,2]
[404110444,1769868641904,-545.0,0.00017356,2]
[404110445,1769868641914,-376.0,0.00017383,2]
[404110446,1769868641924,-545.0,0.00017386,2]
[404110447,1769868641936,-1300.0,0.000174,6]
[404110448,1769868641946,-545.0,0.00017421,2]
[404110449,1769868641958,-500.0,0.00017424,2]
[404110450,1769868641967,-1500.0,0.00017468,2]
[404110451,1769868641976,-1592.47723679,0.00017468,2]
[404110452,1769868641985,-376.0,0.00017481,2]
[404110453,1769868641994,-157.74128292,0.00017483,2]
[404110454,1769868642003,-500.0,0.00017499,2]
[404110455,1769868642013,-1700.0,0.000175,6]
[404110456,1769868642022,-545.0,0.00017508,2]
[404110457,1769868642032,-167.23,0.00017547,2]
[404110458,1769868642041,-545.0,0.00017569,2]
[404110459,1769868642051,-376.0,0.00017596,2]
[404110460,1769868642060,-2200.0,0.000176,6]
[404110461,1769868642069,-1814.61435005,0.00017622,2]
[404110462,1769868642079,-2714.55454272,0.00017622,2]
[404110463,1769868642088,-3672.8802,0.00017622,2]
[404110464,1769868642098,-412.84808933,0.0001764,2]
[404110465,1769868642108,-1000.0,0.00017643,2]
[404110466,1769868642118,-545.0,0.00017652,2]
[404110467,1769868642128,-376.0,0.00017661,2]
[404110468,1769868642138,-346.92554585,0.00017687,2]
[404110469,1769868642147,-400.0,0.000177,6]
[404110470,1769868642157,-545.0,0.00017702,2]
[404110471,1769868642166,-545.0,0.00017736,2]
[404110472,1769868642175,-545.0,0.00017789,2]
[404110473,1769868642185,-545.0,0.0001779,2]
[404110474,1769868642194,-477.25053348,0.000178,2]
[404110475,1769868642204,-400.0,0.000178,6]
[404110476,1769868642213,-376.0,0.00017802,2]
[404110477,1769868642222,-477.25053342,0.00017814,2]
[404110478,1769868642232,-753.67167,0.0001782,2]
[404110479,1769868642243,-753.67168,0.0001782,2]
[404110480,1769868642252,-399.6757401,0.0001782,2]
[404110481,1769868642262,-477.25053342,0.00017829,2]
[404110482,1769868642271,-477.25053342,0.00017843,2]
[404110483,1769868642280,-477.25053342,0.00017857,2]
[404110484,1769868642289,-477.25053342,0.00017871,2]
[404110485,1769868642298,-1651.81367706,0.00017877,2]
[404110486,1769868642309,-477.25053342,0.00017886,2]
[404110487,1769868642318,-376.0,0.00017887,2]
[404110488,1769868642329,-4368.0,0.00017899,2]
[404110489,1769868642338,-300.0,0.00017899,2]
[404110490,1769868642347,-47653.89785126,0.000179,2]
[404110506,1769868643417,-178413.96884951,0.000179,2]
[404110507,1769868643430,-16826.32659936,0.000179,2]
[404110508,1769868643515,-21054.5566261,0.000179,2]
[404110509,1769868643526,-4348.12435315,0.000179,2]
[404110510,1769868643537,-653.76080498,0.000179,2]
[404110541,1769868654477,-500.0,0.00016818,2]
[404110542,1769868654487,-385145.41041564,0.000179,2]
[404110543,1769868654497,-10000.0,0.000179,2]
[404110544,1769868654508,-170.40794853,0.000179,2]
[404110545,1769868654518,-400.0,0.000179,6]
[404110546,1769868654527,-477.25053342,0.000179,2]
[404110547,1769868654537,-10093.42761626,0.00017913,2]
[404110548,1769868654545,-456.738324,0.00017919,2]
[404110549,1769868654555,-392.0,0.00017924,2]
[404110550,1769868654564,-250.0,0.00017967,2]
[404110551,1769868654573,-292.5328787,0.00017973,2]
[404110552,1769868654582,-500.0,0.00017973,2]
[404110553,1769868654591,-500.0,0.00017973,2]
[404110554,1769868654600,-305.41786048,0.00017973,2]
[404110555,1769868654610,-500.0,0.00017973,2]
[404110556,1769868654624,-500.0,0.00017973,2]
[404110557,1769868654634,-500.0,0.00017973,2]
[404110558,1769868654644,-500.0,0.00017973,2]
[404110559,1769868654655,-500.0,0.00017973,2]
[404110560,1769868654664,-500.0,0.00017973,2]
[404110561,1769868654674,-500.0,0.00017973,2]
[404110562,1769868654683,-506.18335719,0.00017973,2]
[404110563,1769868654693,-500.0,0.00017973,2]
[404110564,1769868654703,-500.0,0.00017973,2]
[404110565,1769868654712,-500.0,0.00017973,2]
[404110566,1769868654721,-500.0,0.00017973,2]
[404110567,1769868654731,-501.68536334,0.00017973,2]
[404110568,1769868654741,-501.6324076,0.00017973,2]
[404110569,1769868654754,-500.0,0.00017973,2]
[404110570,1769868654764,-500.0,0.00017973,2]
[404110571,1769868654774,-500.0,0.00017973,2]
[404110572,1769868654784,-500.0,0.00017973,2]
[404110573,1769868654794,-500.0,0.00017973,2]
[404110574,1769868654803,-500.25957413,0.00017973,2]
[404110575,1769868654814,-500.0,0.00017973,2]
[404110576,1769868654823,-500.0,0.00017973,2]
[404110577,1769868654834,-500.0,0.00017973,2]
[404110578,1769868654845,-500.0,0.00017973,2]
[404110579,1769868654854,-500.0,0.00017973,2]
[404110580,1769868654864,-500.0,0.00017973,2]
[404110581,1769868654874,-500.0,0.00017973,2]
[404110582,1769868654884,-500.0,0.00017973,2]
[404110583,1769868654894,-500.0,0.00017973,2]
[404110584,1769868654904,-500.0,0.00017973,2]
[404110585,1769868654913,-500.0,0.00017973,2]
[404110586,1769868654923,-500.0,0.00017973,2]
[404110587,1769868654934,-500.0,0.00017973,2]
[404110588,1769868654945,-500.0,0.00017973,2]
[404110589,1769868654954,-565.00011393,0.00017973,2]
[404110590,1769868654964,-500.0,0.00017973,2]
[404110591,1769868654974,-500.0,0.00017973,2]
[404110592,1769868654983,-500.0,0.00017973,2]
[404110593,1769868654992,-500.0,0.00017973,2]
[404110594,1769868655004,-500.0,0.00017973,2]
[404110595,1769868655014,-500.0,0.00017973,2]
[404110596,1769868655024,-500.0,0.00017973,2]
[404110597,1769868655034,-500.0,0.00017973,2]
[404110598,1769868655043,-150.0,0.00017973,2]
[404110599,1769868655053,-376.0,0.00017985,2]
[404110600,1769868655062,-500.0,0.00017989,2]
[404110601,1769868655072,-545.0,0.00017991,2]
[404110602,1769868655081,-5874.6679911,0.00017995,2]
[404110603,1769868655090,-572.5809725,0.00017999,5]
[404110604,1769868655100,-300.0,0.00017999,2]
[404110605,1769868655110,-500.0,0.00017999,2]
[404110606,1769868655119,-500.0,0.00017999,2]
[404110607,1769868655128,-500.0,0.00017999,2]
[404110608,1769868655138,-500.0,0.00017999,2]
[404110609,1769868655147,-500.0,0.00017999,2]
[404110610,1769868655157,-500.0,0.00017999,2]
[404110611,1769868655166,-500.0,0.00017999,2]
[404110612,1769868655176,-500.0,0.00017999,2]
[404110613,1769868655186,-500.0,0.00017999,2]
[404110614,1769868655195,-500.0,0.00017999,2]
[404110615,1769868655205,-500.0,0.00017999,2]
[404110616,1769868655214,-295.62435103,0.00017999,2]
[404110617,1769868655224,-1915678.74635202,0.00018,2]
[404110618,1769868655235,-659679.46242554,0.00018,2]
[404110619,1769868655244,-268550.38323024,0.00018,2]
[404110620,1769868655257,-151.548,0.00018,2]
[404110621,1769868655266,-375219.76428555,0.00018,2]
[404110622,1769868655277,-424811.78372556,0.00018,2]
[404110623,1769868655286,-108755.12564501,0.00018,2]
[404110624,1769868655295,-242.65773359,0.00018,2]
[404110625,1769868655305,-197007.5185676,0.00018,2]
[404110626,1769868655315,-1518262.55433926,0.00018,2]
[404110627,1769868655325,-4663647.17626153,0.00018,2]
[404110628,1769868655335,-557001.31852324,0.00018,2]
[404110629,1769868655344,-236693.86823505,0.00018,2]
[404110630,1769868655353,-777453.50535127,0.00018,2]
[404110631,1769868655363,-133697.50200994,0.00018,2]
[404110632,1769868655372,-2370463.05015912,0.00018,2]
[404110633,1769868655382,-600.0,0.00018,2]
[404110634,1769868655391,-1838588.50070282,0.00018,2]
[404110635,1769868655400,-525.23948875,0.00018,2]
[404110636,1769868655410,-514.19,0.00018,7]
[404110637,1769868655419,-151.0,0.00018,2]
[404110638,1769868655428,-152.545623,0.00018,2]
[404110639,1769868655437,-151.0,0.00018,2]
[404110640,1769868655446,-187.13654317,0.00018,2]
[404110641,1769868655455,-151.0,0.00018,2]
[404110642,1769868655465,-151.0,0.00018,2]
[404110643,1769868655474,-151.0,0.00018,2]
[404110644,1769868655483,-151.0,0.00018,2]
[404110645,1769868655493,-151.0,0.00018,2]
[404110646,1769868655505,-151.0,0.00018,2]
[404110647,1769868655515,-151.0,0.00018,2]
[404110648,1769868655525,-153.999016,0.00018,2]
[404110649,1769868655534,-151.0,0.00018,2]
[404110650,1769868655544,-151.0,0.00018,2]
[404110651,1769868655553,-1502.0,0.00018,2]
[404110652,1769868655563,-1502.0,0.00018,2]
[404110653,1769868655574,-1502.0,0.00018,2]
[404110654,1769868655585,-1502.0,0.00018,2]
[404110655,1769868655595,-1502.0,0.00018,2]
[404110656,1769868655604,-1502.0,0.00018,2]
[404110657,1769868655615,-151.0,0.00018,2]
[404110658,1769868655624,-157.363101,0.00018,2]
[404110659,1769868655638,-753.67168,0.00018,2]
[404110660,1769868655649,-753.67168,0.00018,2]
[404110661,1769868655661,-753.67168,0.00018,2]
[404110662,1769868655671,-753.67168,0.00018,2]
[404110663,1769868655681,-151.0,0.00018,2]
[404110664,1769868655692,-151.0,0.00018,2]
[404110665,1769868655702,-151.0,0.00018,2]
[404110666,1769868655712,-151.0,0.00018,2]
[404110667,1769868655721,-151.0,0.00018,2]
[404110668,1769868655731,-151.0,0.00018,2]
[404110669,1769868655740,-151.0,0.00018,2]
[404110670,1769868655756,-151.0,0.00018,2]
[404110671,1769868655769,-151.0,0.00018,2]
[404110672,1769868655779,-151.0,0.00018,2]
[404110673,1769868655790,-151.0,0.00018,2]
[404110674,1769868655800,-151.0,0.00018,2]
[404110675,1769868655810,-232.439492,0.00018,2]
[404110676,1769868655820,-157.074194,0.00018,2]
[404110677,1769868655829,-151.0,0.00018,2]
[404110678,1769868655839,-162.966482,0.00018,2]
[404110679,1769868655848,-200.0,0.00018,2]
[404110680,1769868655858,-618.0,0.00018,2]
[404110681,1769868655867,-545.0,0.00018016,2]
[404110682,1769868655877,-2000.0,0.00018016,2]
[404110683,1769868655887,-545.0,0.00018021,2]
[404110684,1769868655897,-500.0,0.00018028,2]
[404110685,1769868655907,-500.0,0.00018083,2]
[404110686,1769868655916,-1779.86636631,0.000181,2]
[404110687,1769868655926,-200.62345921,0.00018128,2]
[404110688,1769868655936,-500.0,0.00018131,3]
[404110689,1769868655945,-545.0,0.00018133,2]
[404110690,1769868655958,-500.0,0.00018137,2]
[404110691,1769868655967,-545.0,0.00018142,2]
[404110692,1769868655976,-600.0,0.00018192,2]
[404110693,1769868655985,-3292.0,0.00018231,2]
[404110694,1769868655995,-545.0,0.00018239,2]
[404110695,1769868656011,-150.0,0.00018255,2]
[404110696,1769868656020,-1000.0,0.00018306,2]
[404110697,1769868656029,-300.0,0.00018355,2]
[404110698,1769868656039,-88512.14,0.00018356,2]
[404110699,1769868656048,-545.0,0.00018393,2]
[404110700,1769868656062,-1712.93078312,0.00018425,2]
[404110701,1769868656071,-1000.0,0.00018521,2]
[404110702,1769868656081,-326.63399032,0.00018521,2]
[404110703,1769868656090,-540.54063963,0.00018521,2]
[404110704,1769868656100,-1000.0,0.00018521,2]
[404110705,1769868656110,-500.0,0.00018521,2]
[404110706,1769868656119,-500.0,0.00018521,2]
[404110707,1769868656128,-1000.0,0.00018521,2]
[404110708,1769868656138,-1000.0,0.00018521,2]
[404110709,1769868656147,-1000.0,0.00018521,2]
[404110710,1769868656157,-500.0,0.00018521,2]
[404110711,1769868656166,-269.8904873,0.00018521,2]
[404110712,1769868656176,-343.37022852,0.00018521,2]
[404110713,1769868656185,-1000.0,0.00018521,2]
[404110714,1769868656195,-1000.0,0.00018521,2]
[404110715,1769868656205,-500.0,0.00018521,2]
[404110716,1769868656215,-1003.70343212,0.00018521,2]
[404110717,1769868656225,-1000.0,0.00018521,2]
[404110718,1769868656235,-987.41342802,0.00018521,2]
[404110719,1769868656245,-582.33207666,0.00018521,2]
[404110720,1769868656260,-1000.0,0.00018521,2]
[404110721,1769868656270,-1036.85123149,0.00018521,2]
[404110722,1769868656280,-1000.0,0.00018521,2]
[404110723,1769868656289,-1000.0,0.00018521,2]
[404110724,1769868656299,-194.71422031,0.00018521,2]
[404110725,1769868656309,-1000.0,0.00018521,2]
[404110726,1769868656319,-1000.0,0.00018521,2]
[404110727,1769868656328,-1000.0,0.00018521,2]
[404110728,1769868656338,-908.63714551,0.00018521,2]
[404110729,1769868656348,-1000.0,0.00018521,2]
[404110730,1769868656358,-1000.0,0.00018521,2]
[404110731,1769868656367,-1000.0,0.00018521,2]
[404110732,1769868656380,-500.40903786,0.00018521,2]
[404110733,1769868656390,-503.32803614,0.00018521,2]
[404110734,1769868656400,-787.5401961,0.00018521,2]
[404110735,1769868656410,-1000.0,0.00018521,2]
[404110736,1769868656419,-1000.0,0.00018521,2]
[404110737,1769868656428,-385.68955508,0.00018521,2]
[404110738,1769868656439,-371.34493106,0.00018521,2]
[404110739,1769868656449,-1000.0,0.00018521,2]
[404110740,1769868656459,-1165.35985631,0.00018564,2]
[404110741,1769868656469,-228.07,0.00018573,2]
[404110742,1769868656479,-1233.02,0.00018576,2]
[404110743,1769868656488,-400.45,0.00018576,2]
[404110744,1769868656498,-151.2,0.00018576,2]
[404110745,1769868656511,-150.0,0.00018576,2]
[404110746,1769868656521,-150.0,0.00018576,2]
[404110747,1769868656532,-389.16,0.00018576,2]
[404110748,1769868656542,-618.0,0.00018626,2]
[404110749,1769868656553,-150.0,0.00018695,2]
[404110750,1769868656564,-1334.0,0.00018695,2]
[404110751,1769868656578,-3480.0,0.00018695,2]
[404110752,1769868656589,-616.0,0.00018695,2]
[404110753,1769868656600,-1410.0,0.00018695,2]
[404110754,1769868656611,-1270.0,0.00018695,2]
[404110755,1769868656626,-150.0,0.00018695,2]
[404110756,1769868656636,-5934.0,0.00018695,2]
[404110757,1769868656646,-2444.0,0.00018695,2]
[404110758,1769868656659,-567.0,0.00018695,2]
[404110759,1769868656669,-167.23,0.00018885,2]
[404110760,1769868656679,-16788.98356141,0.00018888,2]
[404110761,1769868656689,-300.0,0.00018899,2]
[404110762,1769868656701,-5087.21858632,0.000189,3]
[404110763,1769868656711,-150.99036619,0.000189,2]
[404110764,1769868656722,-93758.5376109,0.000189,2]
[404110765,1769868656733,-1776.30922209,0.00018973,2]
[404110766,1769868656743,-1500.0,0.00018983,2]
[404110767,1769868656757,-2449.904566,0.00018983,2]
[404110768,1769868656771,-162.2731326,0.00019,14]
[404110769,1769868656781,-5170.45549193,0.00019,2]
[404110770,1769868656791,-391.75800883,0.00019,2]
[404110771,1769868656802,-42402.16719879,0.00019,2]
[404110772,1769868656812,-350.0,0.00019,2]
[404110773,1769868656822,-359.76179104,0.00019056,2]
[404110774,1769868656832,-500.0,0.00019068,2]
[404110775,1769868656843,-501.51663727,0.00019068,2]
[404110776,1769868656853,-1500.0,0.00019068,2]
[404110777,1769868656863,-263.57582064,0.00019068,2]
[404110778,1769868656874,-1500.0,0.00019068,2]
[404110779,1769868656884,-1500.0,0.00019068,2]
[404110780,1769868656894,-501.04497332,0.00019068,2]
[404110781,1769868656904,-500.0,0.00019068,2]
[404110782,1769868656915,-1001.43163729,0.00019068,2]
[404110783,1769868656924,-500.0,0.00019068,2]
[404110784,1769868656935,-1501.31050168,0.00019068,2]
[404110785,1769868656946,-1078.63346181,0.00019068,2]
[404110786,1769868656955,-382.63613861,0.00019068,2]
[404110787,1769868656968,-503.42877829,0.00019068,2]
[404110788,1769868656979,-1500.0,0.00019068,2]
[404110789,1769868656989,-1500.0,0.00019068,2]
[404110790,1769868657004,-1500.0,0.00019068,2]
[404110791,1769868657014,-398.81271673,0.00019068,2]
[404110792,1769868657024,-1501.09498552,0.00019068,2]
[404110793,1769868657035,-1400.71,0.00019124,2]
[404110794,1769868657045,-300.0,0.00019177,2]
[404110795,1769868657055,-3000.0,0.00019178,2]
[404110796,1769868657065,-945.32813829,0.00019178,7]
[404110797,1769868657075,-500.0,0.00019178,2]
[404110798,1769868657086,-500.0,0.00019178,2]
[404110799,1769868657096,-500.0,0.00019178,2]
[404110800,1769868657106,-500.0,0.00019178,2]
[404110801,1769868657117,-500.0,0.00019178,2]
[404110802,1769868657127,-500.0,0.00019178,2]
[404110803,1769868657137,-500.0,0.00019178,2]
[404110804,1769868657147,-500.0,0.00019178,2]
[404110805,1769868657157,-500.0,0.00019178,2]
[404110806,1769868657168,-500.0,0.00019178,2]
[404110807,1769868657178,-500.0,0.00019178,2]
[404110808,1769868657188,-500.0,0.00019178,2]
[404110809,1769868657199,-500.0,0.00019178,2]
[404110810,1769868657210,-500.0,0.00019178,2]
[404110811,1769868657221,-500.0,0.00019178,2]
[404110812,1769868657232,-391.5795028,0.00019178,2]
[404110813,1769868657244,-500.0,0.00019178,2]
[404110814,1769868657258,-500.0,0.00019178,2]
[404110815,1769868657268,-500.0,0.00019178,2]
[404110816,1769868657278,-500.0,0.00019178,2]
[404110817,1769868657289,-500.0,0.00019178,2]
[404110818,1769868657299,-500.0,0.00019178,2]
[404110819,1769868657309,-150.0,0.00019178,2]
[404110820,1769868657320,-151.0,0.00019178,2]
[404110821,1769868657330,-151.0,0.00019178,2]
[404110822,1769868657348,-151.0,0.00019178,2]
[404110823,1769868657361,-151.0,0.00019178,2]
[404110824,1769868657372,-151.0,0.00019178,2]
[404110825,1769868657382,-151.0,0.00019178,2]
[404110826,1769868657393,-161.373836,0.00019178,2]
[404110827,1769868657403,-20140.52,0.00019178,2]
[404110828,1769868657414,-151.0,0.00019178,2]
[404110829,1769868657424,-151.0,0.00019178,2]
[404110830,1769868657436,-151.0,0.00019178,2]
[404110831,1769868657446,-151.0,0.00019178,2]
[404110832,1769868657457,-151.0,0.00019178,2]
[404110833,1769868657467,-151.0,0.00019178,2]
[404110834,1769868657478,-151.0,0.00019178,2]
[404110835,1769868657488,-151.0,0.00019178,2]
[404110836,1769868657498,-151.0,0.00019178,2]
[404110837,1769868657511,-243.607445,0.00019178,2]
[404110838,1769868657521,-151.0,0.00019178,2]
[404110839,1769868657531,-151.0,0.00019178,2]
[404110840,1769868657541,-301.999946,0.00019178,2]
[404110841,1769868657552,-4368.626111,0.00019178,2]
[404110842,1769868657562,-4368.626111,0.00019178,2]
[404110843,1769868657572,-4368.626111,0.00019178,2]
[404110844,1769868657583,-4368.626111,0.00019178,2]
[404110845,1769868657594,-4368.626111,0.00019178,2]
[404110846,1769868657604,-4368.626111,0.00019178,2]
[404110847,1769868657615,-4368.626111,0.00019178,2]
[404110848,1769868657626,-4368.626111,0.00019178,2]
[404110849,1769868657638,-4368.626111,0.00019178,2]
[404110850,1769868657650,-4368.626111,0.00019178,2]
[404110851,1769868657661,-4368.626111,0.00019178,2]
[404110852,1769868657671,-4368.626111,0.00019178,2]
[404110853,1769868657682,-4368.626111,0.00019178,2]
[404110854,1769868657692,-4368.626111,0.00019178,2]
[404110855,1769868657702,-4368.626111,0.00019178,2]
[404110856,1769868657713,-4368.626111,0.00019178,2]
[404110857,1769868657725,-4368.626111,0.00019178,2]
[404110858,1769868657735,-4368.626111,0.00019178,2]
[404110859,1769868657745,-4368.626111,0.00019178,2]
[404110860,1769868657760,-4368.626119,0.00019178,2]
[404110861,1769868657770,-4098.329161,0.00019178,2]
[404110862,1769868657781,-4098.329161,0.00019178,2]
[404110863,1769868657791,-4098.329161,0.00019178,2]
[404110864,1769868657802,-4098.329161,0.00019178,2]
[404110865,1769868657812,-4098.329161,0.00019178,2]
[404110866,1769868657822,-4098.329161,0.00019178,2]
[404110867,1769868657832,-4098.329161,0.00019178,2]
[404110868,1769868657842,-4098.329161,0.00019178,2]
[404110869,1769868657853,-4098.329161,0.00019178,2]
[404110870,1769868657863,-4098.329161,0.00019178,2]
[404110871,1769868657874,-4098.329161,0.00019178,2]
[404110872,1769868657884,-4098.329161,0.00019178,2]
[404110873,1769868657894,-4098.329161,0.00019178,2]
[404110874,1769868657905,-4098.329161,0.00019178,2]
[404110875,1769868657915,-4098.329161,0.00019178,2]
[404110876,1769868657927,-4098.329161,0.00019178,2]
[404110877,1769868657937,-4098.329161,0.00019178,2]
[404110878,1769868657948,-4098.329161,0.00019178,2]
[404110879,1769868657958,-4098.329161,0.00019178,2]
[404110880,1769868657968,-4098.329156,0.00019178,2]
[404110881,1769868657979,-150.0,0.00019178,2]
[404110882,1769868657988,-160.83563533,0.00019178,2]
[404110883,1769868658000,-376.0,0.00019214,2]
[404110884,1769868658011,-150.0,0.00019233,2]
[404110885,1769868658021,-618.0,0.00019253,3]
[404110886,1769868658031,-150.0,0.00019288,2]
[404110887,1769868658041,-228.07,0.00019316,2]
[404110888,1769868658052,-384.0,0.00019332,2]
[404110889,1769868658062,-376.0,0.00019338,2]
[404110890,1769868658073,-206.72590393,0.00019342,2]
[404110891,1769868658083,-2000.0,0.0001956,12]
[404110892,1769868658094,-1000.0,0.00019603,2]
[404110893,1769868658105,-2000.0,0.00019616,2]
[404110894,1769868658116,-1761.11407335,0.00019616,2]
[404110895,1769868658127,-2000.0,0.00019616,2]
[404110896,1769868658138,-503.56470175,0.00019616,2]
[404110897,1769868658149,-1003.30357537,0.00019616,2]
[404110898,1769868658159,-2000.0,0.00019616,2]
[404110899,1769868658170,-2000.0,0.000197,2]